fUSD/lending_fUSD_20240825
["ID","MTS","AMOUNT","RATE_DAILY","PERIOD"]
[335907212,1724581842785,-500.0,0.00010987,2]
[335907213,1724581842795,-551.09,0.00010987,2]
[335907214,1724581842804,-500.0,0.00010987,2]
[335907215,1724581842815,-500.0,0.00010987,2]
[335907216,1724581842825,-500.0,0.00010987,2]
[335907217,1724581842835,-500.0,0.00010987,2]
[335907218,1724581842845,-500.0,0.00010987,2]
[335907219,1724581842854,-500.0,0.00010987,2]
[335907220,1724581842863,-638.32,0.00010987,2]
[335907221,1724581842872,-500.0,0.00010987,2]
[335907222,1724581842883,-500.0,0.00010987,2]
[335907223,1724581842892,-262.23212949,0.00010987,2]
[335907224,1724581842901,-1142.48,0.00010987,2]
[335907225,1724581842911,-730.2,0.00010987,2]
[335907226,1724581842920,-500.0,0.00010987,2]
[335907227,1724581842930,-1403.1,0.00010987,2]
[335907228,1724581842939,-617.65,0.00010987,2]
[335907229,1724581842948,-500.0,0.00010987,2]
[335907230,1724581842957,-500.0,0.00010987,2]
[335907231,1724581842966,-500.0,0.00010987,2]
[335907232,1724581842975,-436.55,0.00010987,2]
[335907233,1724581842985,-500.0,0.00010987,2]
[335907234,1724581842995,-17039.77,0.00010987,2]
[335907235,1724581843005,-500.0,0.00010987,2]
[335907236,1724581843015,-500.0,0.00010987,2]
[335907237,1724581843025,-500.0,0.00010987,2]
[335907238,1724581843034,-500.0,0.00010987,2]
[335907239,1724581843043,-696.5,0.00010987,2]
[335907240,1724581843053,-526.25,0.00010987,2]
[335907241,1724581843063,-500.0,0.00010987,2]
[335907242,1724581843072,-500.0,0.00010987,2]
[335907243,1724581843082,-500.0,0.00010987,2]
[335907244,1724581843092,-529.43,0.00010987,2]
[335907245,1724581843101,-500.0,0.00010987,2]
[335907246,1724581843111,-500.0,0.00010987,2]
[335907247,1724581843121,-500.0,0.00010987,2]
[335907248,1724581843132,-500.0,0.00010987,2]
[335907249,1724581843142,-500.0,0.00010987,2]
[335907250,1724581843151,-714.59,0.00010987,2]
[335907252,1724581843160,-557.88,0.00010987,2]
[335907253,1724581843170,-587.37,0.00010987,2]
[335907254,1724581843179,-780.7,0.00010987,2]
[335907255,1724581843188,-8253.99,0.00010987,2]
[335907256,1724581843197,-500.0,0.00010987,2]
[335907257,1724581843207,-500.0,0.00010987,2]
[335907258,1724581843215,-569.93,0.00010987,2]
[335907259,1724581843225,-500.0,0.00010987,2]
[335907260,1724581843236,-592.96,0.00010987,2]
[335907261,1724581843246,-500.0,0.00010987,2]
[335907262,1724581843255,-500.0,0.00010987,2]
[335907263,1724581843266,-1264.39,0.00010987,2]
[335907264,1724581843276,-500.0,0.00010987,2]
[335907265,1724581843286,-540.83,0.00010988,2]
[335907266,1724581843297,-500.0,0.00010988,2]
[335907267,1724581843307,-500.0,0.00010988,2]
[335907268,1724581843318,-500.0,0.00010988,2]
[335907269,1724581843329,-500.0,0.00010988,2]
[335907270,1724581843338,-500.0,0.00010988,2]
[335907271,1724581843348,-500.0,0.00010988,2]
[335907272,1724581843359,-500.0,0.00010988,2]
[335907273,1724581843370,-500.0,0.00010988,2]
[335907274,1724581843380,-500.0,0.00010988,2]
[335907275,1724581843389,-500.0,0.00010988,2]
[335907276,1724581843398,-500.0,0.00010988,2]
[335907277,1724581843407,-500.0,0.00010988,2]
[335907278,1724581843417,-500.0,0.00010988,2]
[335907279,1724581843426,-500.0,0.00010988,2]
[335907280,1724581843437,-500.0,0.00010988,2]
[335907281,1724581843448,-500.0,0.00010988,2]
[335907282,1724581843458,-500.0,0.00010988,2]
[335907283,1724581843467,-2416.26,0.00010988,2]
[335907284,1724581843478,-2416.26,0.00010988,2]
[335907285,1724581843487,-500.0,0.00010988,2]
[335907286,1724581843496,-500.0,0.00010988,2]
[335907287,1724581843506,-500.0,0.00010988,2]
[335907288,1724581843517,-500.0,0.00010988,2]
[335907289,1724581843526,-767.54,0.00010988,2]
[335907290,1724581843536,-500.0,0.00010988,2]
[335907291,1724581843545,-500.0,0.00010988,2]
[335907292,1724581843555,-882.61,0.00010988,2]
[335907293,1724581843565,-500.0,0.00010988,2]
[335907294,1724581843575,-500.0,0.00010988,2]
[335907295,1724581843584,-560.3,0.00010988,2]
[335907296,1724581843593,-500.0,0.00010988,2]
[335907297,1724581843603,-500.0,0.00010988,2]
[335907298,1724581843612,-500.0,0.00010988,2]
[335907299,1724581843622,-500.0,0.00010988,2]
[335907300,1724581843632,-500.0,0.00010988,2]
[335907301,1724581843642,-500.0,0.00010988,2]
[335907302,1724581843651,-500.0,0.00010988,2]
[335907303,1724581843660,-1179.4,0.00010988,2]
[335907304,1724581843670,-1179.4,0.00010988,2]
[335907305,1724581843679,-500.0,0.00010988,2]
[335907306,1724581843689,-500.0,0.00010988,2]
[335907307,1724581843698,-533.02,0.00010988,2]
[335907308,1724581843707,-500.0,0.00010988,2]
[335907309,1724581843716,-500.0,0.00010988,2]
[335907310,1724581843726,-500.32,0.00010988,2]
[335907311,1724581843735,-500.0,0.00010988,2]
[335907312,1724581843746,-500.32,0.00010988,2]
[335907313,1724581843755,-500.0,0.00010988,2]
[335907314,1724581843765,-1504.91,0.00010988,2]
[335907315,1724581843775,-1504.91,0.00010988,2]
[335907316,1724581843784,-500.0,0.00010988,2]
[335907317,1724581843794,-500.0,0.00010988,2]
[335907318,1724581843804,-500.0,0.00010988,2]
[335907319,1724581843813,-500.0,0.00010988,2]
[335907320,1724581843823,-500.0,0.00010988,2]
[335907321,1724581843834,-500.0,0.00010988,2]
[335907322,1724581843843,-500.0,0.00010988,2]
[335907323,1724581843852,-500.0,0.00010988,2]
[335907324,1724581843862,-500.0,0.00010988,2]
[335907325,1724581843871,-500.0,0.00010988,2]
[335907326,1724581843881,-740.93,0.00010988,2]
[335907327,1724581843891,-500.0,0.00010988,2]
[335907328,1724581843901,-500.0,0.00010988,2]
[335907329,1724581843911,-153.55,0.00010988,2]
[335907330,1724581843920,-500.0,0.00010988,2]
[335907331,1724581843929,-575.35,0.00010988,2]
[335907332,1724581843938,-500.0,0.00010988,2]
[335907333,1724581843947,-500.0,0.00010988,2]
[335907334,1724581843957,-500.0,0.00010988,2]
[335907335,1724581843967,-261.45,0.00010988,2]
[335907336,1724581843977,-500.0,0.00010988,2]
[335907337,1724581843987,-500.0,0.00010988,2]
[335907338,1724581843997,-500.0,0.00010988,2]
[335907339,1724581844006,-500.0,0.00010988,2]
[335907340,1724581844015,-500.0,0.00010988,2]
[335907341,1724581844025,-500.0,0.00010988,2]
[335907342,1724581844034,-500.0,0.00010988,2]
[335907343,1724581844044,-500.0,0.00010988,2]
[335907344,1724581844053,-251.15,0.00010988,2]
[335907345,1724581844063,-500.0,0.00010988,2]
[335907346,1724581844072,-168.9,0.00010988,2]
[335907347,1724581844081,-620.28,0.00010988,2]
[335907348,1724581844091,-620.28,0.00010988,2]
[335907349,1724581844100,-504.35,0.00010988,2]
[335907350,1724581844109,-500.0,0.00010988,2]
[335907351,1724581844119,-500.0,0.00010988,2]
[335907352,1724581844129,-500.0,0.00010988,2]
[335907353,1724581844139,-500.0,0.00010988,2]
[335907354,1724581844149,-500.0,0.00010988,2]
[335907355,1724581844159,-500.0,0.00010988,2]
[335907356,1724581844169,-500.0,0.00010988,2]
[335907357,1724581844179,-827.49,0.00010988,2]
[335907358,1724581844189,-438.09699119,0.00010988,2]
[335907359,1724581844200,-500.0,0.00010988,2]
[335907360,1724581844210,-500.0,0.00010988,2]
[335907361,1724581844219,-533.72,0.00010988,2]
[335907362,1724581844228,-500.0,0.00010988,2]
[335907363,1724581844238,-500.0,0.00010988,2]
[335907364,1724581844248,-680.26,0.00010988,2]
[335907365,1724581844258,-1179.53,0.00010988,2]
[335907366,1724581844267,-947.01,0.00010988,2]
[335907367,1724581844277,-500.0,0.00010988,2]
[335907368,1724581844286,-500.0,0.00010988,2]
[335907369,1724581844296,-500.0,0.00010988,2]
[335907370,1724581844305,-500.0,0.00010988,2]
[335907371,1724581844315,-500.0,0.00010988,2]
[335907372,1724581844324,-1203.39,0.00010988,2]
[335907373,1724581844334,-1113.57,0.00010988,2]
[335907374,1724581844344,-1554.6,0.00010988,2]
[335907375,1724581844353,-500.0,0.00010988,2]
[335907376,1724581844363,-512.6,0.00010988,2]
[335907377,1724581844373,-500.0,0.00010988,2]
[335907378,1724581844384,-500.0,0.00010988,2]
[335907379,1724581844393,-551.09,0.00010988,2]
[335907380,1724581844403,-500.0,0.00010988,2]
[335907381,1724581844412,-500.0,0.00010988,2]
[335907382,1724581844422,-632.2,0.00010988,2]
[335907383,1724581844431,-500.0,0.00010988,2]
[335907384,1724581844446,-500.0,0.00010988,2]
[335907385,1724581844455,-598.64,0.00010988,2]
[335907386,1724581844465,-500.0,0.00010988,2]
[335907387,1724581844474,-500.0,0.00010988,2]
[335907388,1724581844487,-500.0,0.00010988,2]
[335907389,1724581844497,-500.0,0.00010988,2]
[335907390,1724581844507,-1142.48,0.00010988,2]
[335907391,1724581844519,-500.0,0.00010988,2]
[335907392,1724581844529,-500.0,0.00010988,2]
[335907393,1724581844539,-1403.1,0.00010988,2]
[335907394,1724581844548,-500.0,0.00010988,2]
[335907395,1724581844558,-500.0,0.00010988,2]
[335907396,1724581844568,-500.0,0.00010988,2]
[335907397,1724581844578,-500.0,0.00010988,2]
[335907398,1724581844587,-500.0,0.00010988,2]
[335907399,1724581844596,-17039.77,0.00010988,2]
[335907400,1724581844606,-500.0,0.00010988,2]
[335907401,1724581844615,-22412.3944053,0.00010988,2]
[335907402,1724581844624,-500.0,0.00010988,2]
[335907403,1724581844635,-500.0,0.00010988,2]
[335907404,1724581844646,-500.0,0.00010988,2]
[335907405,1724581844655,-696.5,0.00010988,2]
[335907406,1724581844665,-526.25,0.00010988,2]
[335907407,1724581844674,-666.53,0.00010988,2]
[335907408,1724581844683,-500.0,0.00010988,2]
[335907409,1724581844693,-1367.33,0.00010988,2]
[335907410,1724581844703,-500.0,0.00010988,2]
[335907411,1724581844712,-500.0,0.00010988,2]
[335907412,1724581844722,-500.0,0.00010988,2]
[335907413,1724581844732,-576.27,0.00010988,2]
[335907414,1724581844742,-780.7,0.00010988,2]
[335907415,1724581844751,-8253.99,0.00010988,2]
[335907416,1724581844760,-500.0,0.00010988,2]
[335907417,1724581844770,-633.89,0.00010988,2]
[335907418,1724581844780,-569.93,0.00010988,2]
[335907419,1724581844789,-500.0,0.00010988,2]
[335907420,1724581844799,-592.96,0.00010988,2]
[335907421,1724581844808,-500.0,0.00010988,2]
[335907422,1724581844818,-12100.73,0.00010988,2]
[335907423,1724581844828,-500.0,0.00010988,2]
[335907424,1724581844837,-1264.39,0.00010988,2]
[335907425,1724581844847,-298.02000435,0.00010988,2]
[335907426,1724581844858,-500.0,0.00010989,2]
[335907427,1724581844868,-500.0,0.00010989,2]
[335907428,1724581844878,-500.0,0.00010989,2]
[335907429,1724581844888,-500.0,0.00010989,2]
[335907430,1724581844898,-500.0,0.00010989,2]
[335907431,1724581844908,-500.0,0.00010989,2]
[335907432,1724581844917,-500.0,0.00010989,2]
[335907433,1724581844927,-2416.26,0.00010989,2]
[335907434,1724581844937,-2416.26,0.00010989,2]
[335907435,1724581844946,-500.0,0.00010989,2]
[335907436,1724581844956,-500.0,0.00010989,2]
[335907437,1724581844965,-500.0,0.00010989,2]
[335907438,1724581844975,-500.0,0.00010989,2]
[335907439,1724581844984,-500.0,0.00010989,2]
[335907440,1724581844994,-500.0,0.00010989,2]
[335907441,1724581845004,-500.0,0.00010989,2]
[335907442,1724581845013,-500.0,0.00010989,2]
[335907443,1724581845022,-500.0,0.00010989,2]
[335907444,1724581845032,-500.0,0.00010989,2]
[335907445,1724581845042,-500.0,0.00010989,2]
[335907446,1724581845051,-500.0,0.00010989,2]
[335907447,1724581845061,-1179.4,0.00010989,2]
[335907448,1724581845071,-1179.4,0.00010989,2]
[335907449,1724581845080,-500.0,0.00010989,2]
[335907450,1724581845090,-500.0,0.00010989,2]
[335907451,1724581845099,-500.0,0.00010989,2]
[335907452,1724581845108,-500.0,0.00010989,2]
[335907453,1724581845117,-500.32,0.00010989,2]
[335907454,1724581845127,-500.32,0.00010989,2]
[335907455,1724581845137,-1504.91,0.00010989,2]
[335907456,1724581845146,-1504.91,0.00010989,2]
[335907457,1724581845155,-500.0,0.00010989,2]
[335907458,1724581845164,-500.0,0.00010989,2]
[335907459,1724581845173,-500.0,0.00010989,2]
[335907460,1724581845182,-500.0,0.00010989,2]
[335907461,1724581845191,-500.0,0.00010989,2]
[335907462,1724581845201,-500.0,0.00010989,2]
[335907463,1724581845210,-500.0,0.00010989,2]
[335907464,1724581845220,-500.0,0.00010989,2]
[335907465,1724581845229,-544.75,0.00010989,2]
[335907466,1724581845239,-644.35,0.00010989,2]
[335907467,1724581845249,-319.0,0.00010989,2]
[335907468,1724581845258,-620.28,0.00010989,2]
[335907469,1724581845267,-620.28,0.00010989,2]
[335907470,1724581845277,-614.45,0.00010989,2]
[335907471,1724581845287,-1203.39,0.00010989,2]
[335907472,1724581845298,-1203.39,0.00010989,2]
[335907473,1724581845307,-1203.39,0.00010989,2]
[335907474,1724581845317,-500.0,0.00010989,2]
[335907475,1724581845326,-500.0,0.00010989,2]
[335907476,1724581845336,-500.0,0.00010989,2]
[335907477,1724581845347,-500.0,0.00010989,2]
[335907478,1724581845356,-500.0,0.00010989,2]
[335907479,1724581845365,-500.0,0.00010989,2]
[335907480,1724581845375,-500.0,0.00010989,2]
[335907482,1724581845391,-500.0,0.00010989,2]
[335907483,1724581845400,-432.92,0.00010989,2]
[335907484,1724581845410,-1403.1,0.00010989,2]
[335907485,1724581845420,-1403.1,0.00010989,2]
[335907486,1724581845431,-1403.1,0.00010989,2]
[335907487,1724581845444,-500.0,0.00010989,2]
[335907488,1724581845453,-500.0,0.00010989,2]
[335907489,1724581845463,-500.0,0.00010989,2]
[335907490,1724581845472,-500.0,0.00010989,2]
[335907491,1724581845483,-500.0,0.00010989,2]
[335907492,1724581845492,-17039.77,0.00010989,2]
[335907493,1724581845502,-17039.77,0.00010989,2]
[335907494,1724581845511,-17039.77,0.00010989,2]
[335907495,1724581845523,-25912.6170688,0.00010989,2]
[335907496,1724581845532,-500.0,0.00010989,2]
[335907497,1724581845542,-622.2,0.00010989,2]
[335907498,1724581845552,-696.5,0.00010989,2]
[335907499,1724581845561,-696.5,0.00010989,2]
[335907500,1724581845571,-696.5,0.00010989,2]
[335907501,1724581845581,-500.0,0.00010989,2]
[335907502,1724581845591,-500.0,0.00010989,2]
[335907503,1724581845600,-500.0,0.00010989,2]
[335907504,1724581845610,-587.37,0.00010989,2]
[335907505,1724581845619,-587.37,0.00010989,2]
[335907506,1724581845629,-587.37,0.00010989,2]
[335907507,1724581845638,-587.37,0.00010989,2]
[335907508,1724581845647,-780.7,0.00010989,2]
[335907509,1724581845657,-780.7,0.00010989,2]
[335907510,1724581845666,-780.7,0.00010989,2]
[335907511,1724581845676,-8253.99,0.00010989,2]
[335907512,1724581845685,-8253.99,0.00010989,2]
[335907513,1724581845695,-8253.99,0.00010989,2]
[335907514,1724581845705,-500.0,0.00010989,2]
[335907515,1724581845715,-328.89,0.00010989,2]
[335907516,1724581845724,-592.96,0.00010989,2]
[335907517,1724581845734,-592.96,0.00010989,2]
[335907518,1724581845744,-592.96,0.00010989,2]
[335907519,1724581845754,-1264.39,0.00010989,2]
[335907520,1724581845763,-1264.39,0.00010989,2]
[335907521,1724581845773,-1264.39,0.00010989,2]
[335907522,1724581845782,-1557.41,0.0001099,2]
[335907523,1724581845792,-500.0,0.0001099,2]
[335907524,1724581845802,-2996.65,0.0001099,2]
[335907525,1724581845811,-500.0,0.0001099,2]
[335907526,1724581845821,-586.49,0.0001099,2]
[335907527,1724581845831,-500.0,0.0001099,2]
[335907528,1724581845840,-500.0,0.0001099,2]
[335907529,1724581845850,-788824.91384593,0.0001099,3]
[335907530,1724581845859,-500.0,0.0001099,2]
[335907531,1724581845869,-500.0,0.0001099,2]
[335907532,1724581845879,-500.0,0.0001099,2]
[335907533,1724581845889,-500.0,0.0001099,2]
[335907534,1724581845898,-500.0,0.0001099,2]
[335907535,1724581845907,-500.0,0.0001099,2]
[335907536,1724581845916,-500.0,0.0001099,2]
[335907537,1724581845926,-500.0,0.0001099,2]
[335907538,1724581845935,-500.0,0.0001099,2]
[335907539,1724581845946,-680.26,0.0001099,2]
[335907540,1724581845956,-500.0,0.0001099,2]
[335907541,1724581845966,-947.01,0.0001099,2]
[335907542,1724581845975,-585.60830713,0.0001099,2]
[335907544,1724581845985,-500.0,0.0001099,2]
[335907545,1724581845994,-1203.39,0.0001099,2]
[335907546,1724581846004,-1554.6,0.0001099,2]
[335907547,1724581846014,-551.09,0.0001099,2]
[335907548,1724581846025,-500.0,0.0001099,2]
[335907549,1724581846035,-500.0,0.0001099,2]
[335907550,1724581846045,-500.0,0.0001099,2]
[335907551,1724581846054,-638.32,0.0001099,2]
[335907552,1724581846064,-500.0,0.0001099,2]
[335907553,1724581846073,-500.0,0.0001099,2]
[335907554,1724581846083,-500.0,0.0001099,2]
[335907555,1724581846093,-1142.48,0.0001099,2]
[335907556,1724581846102,-730.2,0.0001099,2]
[335907557,1724581846111,-1403.1,0.0001099,2]
[335907558,1724581846120,-500.0,0.0001099,2]
[335907559,1724581846129,-500.0,0.0001099,2]
[335907560,1724581846139,-500.0,0.0001099,2]
[335907561,1724581846149,-17039.77,0.0001099,2]
[335907562,1724581846161,-500.0,0.0001099,2]
[335907563,1724581846170,-696.5,0.0001099,2]
[335907564,1724581846180,-526.25,0.0001099,2]
[335907565,1724581846189,-500.0,0.0001099,2]
[335907566,1724581846199,-500.0,0.0001099,2]
[335907567,1724581846208,-270.05661484,0.0001099,2]
[335907568,1724581846217,-529.43,0.0001099,2]
[335907569,1724581846227,-500.0,0.0001099,2]
[335907570,1724581846236,-500.0,0.0001099,2]
[335907571,1724581846246,-500.0,0.0001099,2]
[335907572,1724581846255,-714.59,0.0001099,2]
[335907573,1724581846265,-500.0,0.0001099,2]
[335907574,1724581846274,-557.88,0.0001099,2]
[335907575,1724581846284,-780.7,0.0001099,2]
[335907576,1724581846293,-8253.99,0.0001099,2]
[335907577,1724581846302,-500.0,0.0001099,2]
[335907578,1724581846311,-569.93,0.0001099,2]
[335907579,1724581846320,-592.96,0.0001099,2]
[335907580,1724581846330,-1264.39,0.0001099,2]
[335907581,1724581846341,-39913.5077228,0.00010991,2]
[335907582,1724581846351,-36413.2850593,0.00010991,2]
[335907583,1724581846360,-32913.0623958,0.00010991,2]
[335907584,1724581846369,-29412.8397323,0.00010991,2]
[335907585,1724581846530,-767.54,0.00010993,2]
[335907586,1724581846540,-882.61,0.00010993,2]
[335907587,1724581846550,-560.3,0.00010993,2]
[335907588,1724581846559,-500.0,0.00010993,2]
[335907589,1724581846571,-533.02,0.00010993,2]
[335907590,1724581846580,-500.0,0.00010993,2]
[335907591,1724581846590,-500.0,0.00010993,2]
[335907592,1724581846599,-500.0,0.00010993,2]
[335907593,1724581846609,-500.0,0.00010993,2]
[335907594,1724581846618,-740.93,0.00010993,2]
[335907595,1724581846628,-153.55,0.00010993,2]
[335907596,1724581846638,-500.0,0.00010993,2]
[335907597,1724581846648,-575.35,0.00010993,2]
[335907598,1724581846658,-500.0,0.00010993,2]
[335907599,1724581846667,-500.0,0.00010993,2]
[335907600,1724581846678,-500.0,0.00010993,2]
[335907601,1724581846687,-500.0,0.00010993,2]
[335907602,1724581846697,-500.0,0.00010993,2]
[335907603,1724581846707,-500.0,0.00010993,2]
[335907604,1724581846716,-500.0,0.00010993,2]
[335907605,1724581846726,-587.37,0.00010993,2]
[335907606,1724581846736,-500.0,0.00010993,2]
[335907607,1724581846745,-500.0,0.00010993,2]
[335907608,1724581846755,-500.0,0.00010993,2]
[335907609,1724581846765,-540.83,0.00010994,2]
[335907610,1724581846775,-500.0,0.00010994,2]
[335907611,1724581846785,-500.0,0.00010994,2]
[335907612,1724581846796,-550.89,0.00010994,2]
[335907613,1724581846805,-500.0,0.00010994,2]
[335907614,1724581846815,-500.0,0.00010994,2]
[335907615,1724581846825,-500.0,0.00010994,2]
[335907616,1724581846834,-500.0,0.00010994,2]
[335907617,1724581846845,-471.68,0.00010994,2]
[335907618,1724581846854,-500.0,0.00010994,2]
[335907619,1724581846864,-500.0,0.00010994,2]
[335907620,1724581846875,-500.0,0.00010994,2]
[335907621,1724581846885,-2416.26,0.00010994,2]
[335907622,1724581846894,-1557.41,0.00010994,2]
[335907623,1724581846903,-500.0,0.00010994,2]
[335907624,1724581846913,-521.24715927,0.00010994,2]
[335907625,1724581846922,-500.0,0.00010994,2]
[335907626,1724581846932,-500.0,0.00010994,2]
[335907627,1724581846941,-500.0,0.00010994,2]
[335907628,1724581846950,-500.0,0.00010994,2]
[335907629,1724581846959,-500.0,0.00010994,2]
[335907630,1724581846969,-500.0,0.00010994,2]
[335907631,1724581846978,-1179.4,0.00010994,2]
[335907632,1724581846987,-500.0,0.00010994,2]
[335907633,1724581846996,-500.0,0.00010994,2]
[335907634,1724581847006,-500.0,0.00010994,2]
[335907635,1724581847016,-500.32,0.00010994,2]
[335907636,1724581847027,-500.0,0.00010994,2]
[335907637,1724581847038,-2996.65,0.00010994,2]
[335907638,1724581847048,-500.0,0.00010994,2]
[335907639,1724581847058,-1504.91,0.00010994,2]
[335907640,1724581847068,-500.0,0.00010994,2]
[335907641,1724581847078,-500.0,0.00010994,2]
[335907642,1724581847088,-500.0,0.00010994,2]
[335907643,1724581847097,-500.0,0.00010994,2]
[335907644,1724581847106,-500.0,0.00010994,2]
[335907645,1724581847116,-500.0,0.00010994,2]
[335907646,1724581847125,-510.86545566,0.00010994,2]
[335907647,1724581847134,-586.49,0.00010994,2]
[335907648,1724581847144,-500.0,0.00010994,2]
[335907649,1724581847154,-620.28,0.00010994,2]
[335907650,1724581847163,-500.0,0.00010994,2]
[335907651,1724581847172,-500.0,0.00010994,2]
[335907652,1724581847181,-500.0,0.00010994,2]
[335907653,1724581847191,-500.0,0.00010994,2]
[335907654,1724581847200,-588.18490483,0.00010994,2]
[335907655,1724581847210,-500.0,0.00010994,2]
[335907656,1724581847219,-500.0,0.00010994,2]
[335907657,1724581847228,-827.49,0.00010994,2]
[335907658,1724581847237,-500.0,0.00010994,2]
[335907659,1724581847246,-500.0,0.00010994,2]
[335907660,1724581847256,-500.0,0.00010994,2]
[335907661,1724581847266,-533.72,0.00010994,2]
[335907662,1724581847276,-500.0,0.00010994,2]
[335907663,1724581847286,-500.0,0.00010994,2]
[335907664,1724581847296,-500.0,0.00010994,2]
[335907665,1724581847308,-500.0,0.00010994,2]
[335907666,1724581847317,-680.26,0.00010994,2]
[335907667,1724581847328,-1179.53,0.00010994,2]
[335907668,1724581847338,-500.0,0.00010994,2]
[335907669,1724581847350,-947.01,0.00010994,2]
[335907670,1724581847360,-500.0,0.00010994,2]
[335907671,1724581847369,-500.0,0.00010994,2]
[335907672,1724581847379,-500.0,0.00010994,2]
[335907673,1724581847388,-500.0,0.00010994,2]
[335907674,1724581847397,-1203.39,0.00010994,2]
[335907675,1724581847407,-1113.57,0.00010994,2]
[335907676,1724581847419,-1554.6,0.00010994,2]
[335907677,1724581847429,-186.88,0.00010994,2]
[335907678,1724581847441,-512.6,0.00010994,2]
[335907679,1724581847451,-500.0,0.00010994,2]
[335907680,1724581847460,-551.09,0.00010994,2]
[335907681,1724581847470,-500.0,0.00010994,2]
[335907682,1724581847480,-632.2,0.00010994,2]
[335907683,1724581847490,-500.0,0.00010994,2]
[335907684,1724581847500,-500.0,0.00010994,2]
[335907685,1724581847509,-500.0,0.00010994,2]
[335907686,1724581847519,-598.64,0.00010994,2]
[335907687,1724581847529,-638.32,0.00010994,2]
[335907688,1724581847538,-500.0,0.00010994,2]
[335907689,1724581847548,-500.0,0.00010994,2]
[335907690,1724581847558,-500.0,0.00010994,2]
[335907691,1724581847567,-500.0,0.00010994,2]
[335907692,1724581847576,-1142.48,0.00010994,2]
[335907693,1724581847586,-730.2,0.00010994,2]
[335907694,1724581847596,-500.0,0.00010994,2]
[335907695,1724581847606,-1403.1,0.00010994,2]
[335907696,1724581847615,-273.42821546,0.00010994,2]
[335907697,1724581847625,-500.0,0.00010994,2]
[335907698,1724581847635,-500.0,0.00010994,2]
[335907699,1724581847645,-500.0,0.00010994,2]
[335907700,1724581847654,-500.0,0.00010994,2]
[335907701,1724581847664,-17039.77,0.00010994,2]
[335907702,1724581847674,-500.0,0.00010994,2]
[335907703,1724581847685,-500.0,0.00010994,2]
[335907704,1724581847694,-696.5,0.00010994,2]
[335907705,1724581847703,-526.25,0.00010994,2]
[335907706,1724581847712,-500.0,0.00010994,2]
[335907707,1724581847721,-666.53,0.00010994,2]
[335907708,1724581847731,-500.0,0.00010994,2]
[335907709,1724581847740,-500.0,0.00010994,2]
[335907710,1724581847749,-1367.33,0.00010994,2]
[335907711,1724581847759,-529.43,0.00010994,2]
[335907712,1724581847768,-500.0,0.00010994,2]
[335907713,1724581847778,-500.0,0.00010994,2]
[335907714,1724581847788,-500.0,0.00010994,2]